bitfinex/quotes_BTCUSD_20250314
["timestamp","ask_amount","ask_price","bid_price","bid_amount"]
[1741965590602,0.011765,84995.0,84994.0,0.16908]
[1741965590808,0.011765,84995.0,84955.0,0.0453]
[1741965590809,0.247154,84967.0,84950.0,0.00885078]
[1741965591168,0.247153,84968.0,84962.0,0.235397]
[1741965591366,0.235345,84982.0,84967.0,0.11957503]
[1741965591534,0.352213,84995.0,84967.0,0.11957503]
[1741965591535,0.247124,84977.0,84967.0,0.11957503]
[1741965591724,0.247124,84977.0,84971.0,0.235372]
[1741965591725,0.011768,84976.0,84971.0,0.235372]
[1741965591932,0.011768,84976.0,84969.0,0.235378]
[1741965592136,0.011768,84975.0,84969.0,0.235378]
[1741965592348,0.235366,84974.0,84970.0,0.169]
[1741965592540,0.00041601,84976.0,84973.0,0.235367]
[1741965592828,0.24754501,84976.0,84970.0,0.169]
[1741965593028,0.011768,84975.0,84970.0,0.404375]
[1741965593376,0.011768,84975.0,84970.0,0.169]
[1741965593377,0.235369,84973.0,84970.0,0.169]
[1741965593582,0.00041601,84976.0,84970.0,0.169]
[1741965593767,0.00041601,84976.0,84974.0,0.235364]
[1741965594510,0.00041601,84976.0,84975.0,0.011768]
[1741965594948,0.00041601,84976.0,84975.0,0.180248]
[1741965595152,0.00041601,84976.0,84975.0,0.29974303]
[1741965595361,0.00041601,84976.0,84975.0,0.13134303]
[1741965595540,0.00041601,84976.0,84975.0,0.29958303]
[1741965595933,0.00041601,84976.0,84975.0,0.32304145]
[1741965596679,0.00041601,84976.0,84975.0,1.81127345]
[1741965596856,0.00041601,84976.0,84975.0,1.69169842]
[1741965597094,0.01218401,84976.0,84975.0,1.52353842]
[1741965597277,0.01218401,84976.0,84975.0,1.5]
[1741965597452,0.00041601,84976.0,84975.0,0.35493803]
[1741965597654,0.00041601,84976.0,84974.0,0.403325]
[1741965597861,0.00041601,84976.0,84975.0,1.5]
[1741965598062,0.00041601,84976.0,84975.0,1.63134303]
[1741965598237,0.00041601,84976.0,84975.0,1.70724303]
[1741965598438,0.00041601,84976.0,84975.0,1.87516303]
[1741965599158,0.00041601,84976.0,84975.0,1.66796]
[1741965599903,0.011768,84971.0,84970.0,0.000338]
[1741965600132,0.011768,84971.0,84970.0,0.168298]
[1741965600310,0.011768,84975.0,84970.0,0.168298]
[1741965600451,0.247139,84972.0,84970.0,0.168298]
[1741965600656,0.00041601,84976.0,84974.0,0.235363]
[1741965600851,0.00041601,84976.0,84975.0,0.11957503]
[1741965601109,0.00041601,84976.0,84975.0,0.13134303]
[1741965601315,0.235328,84988.0,84975.0,0.13134303]
[1741965601316,0.000169,84990.0,84989.0,0.235324]
[1741965601516,0.000169,84990.0,84989.0,0.36666503]
[1741965601739,1e-06,84990.0,84989.0,0.46160588]
[1741965601978,1e-06,84990.0,84989.0,0.76160588]
[1741965602190,0.00087376,85020.0,85019.0,0.247003]
[1741965602393,0.00087376,85020.0,85019.0,0.414763]
[1741965602594,0.01349452,85039.0,85028.0,0.235214]
[1741965602595,0.235209,85031.0,85028.0,0.235214]
[1741965602778,0.246969,85031.0,85027.0,0.235218]
[1741965602928,0.235203,85033.0,85029.0,0.235213]
[1741965603127,0.235206,85032.0,85027.0,0.235217]
[1741965603365,0.235198,85035.0,85030.0,0.1678]
[1741965603577,0.00173552,85039.0,85038.0,0.235188]
[1741965603936,0.00173552,85039.0,85037.0,0.235191]
[1741965604189,0.00173552,85039.0,85038.0,0.16764]
[1741965604386,0.01176,85032.0,85025.0,0.01242873]
[1741965604571,0.01176,85030.0,85026.0,0.00012257]
[1741965604880,0.011759,85038.0,85026.0,0.00012257]
[1741965604881,0.01176,85033.0,85026.0,0.00012257]
[1741965605039,0.246979,85027.0,85026.0,0.00012257]
[1741965605561,0.246979,85027.0,85026.0,0.16756257]
[1741965605767,0.246979,85027.0,85026.0,0.00012257]
[1741965608041,0.2353856,85029.0,85026.0,0.00012257]
[1741965608249,0.0001696,85029.0,85026.0,0.00012257]
[1741965608482,0.2471446,85029.0,85027.0,0.16716]
[1741965608693,0.0001696,85029.0,85026.0,0.00012257]
[1741965608893,0.0001696,85029.0,85027.0,0.235219]
[1741965609155,0.0001696,85029.0,85028.0,0.01176]
[1741965609359,0.0001696,85029.0,85028.0,1.5]
[1741965609555,0.0001696,85029.0,85028.0,1.66696]
[1741965610099,0.0001696,85029.0,85028.0,1.79829503]
[1741965610325,0.0001696,85029.0,85028.0,1.63133503]
[1741965610531,0.0001696,85029.0,85028.0,1.79817503]
[1741965610724,0.0001696,85029.0,85028.0,1.66684]
[1741965610935,0.0001696,85029.0,85028.0,1.5]
[1741965611104,0.0001696,85029.0,85026.0,0.00012257]
[1741965611299,0.2353846,85029.0,85027.0,0.16672]
[1741965611548,0.01176,85027.0,85026.0,0.00012257]
[1741965611751,0.246979,85027.0,85026.0,0.00012257]
[1741965612349,0.26542733,85027.0,85026.0,5.7e-07]
[1741965615580,0.2353846,85029.0,85027.0,0.235219]
[1741965615581,0.0001696,85029.0,85027.0,0.235219]
[1741965615786,0.0001696,85029.0,85027.0,0.235218]
[1741965615997,0.0001696,85029.0,85026.0,0.23521857]
[1741965615998,0.246977,85028.0,85026.0,5.7e-07]
[1741965616193,0.235222,85026.0,85023.0,0.23511446]
[1741965616396,0.235255,85014.0,85012.0,0.00012333]
[1741965616624,0.011762,85013.0,85012.0,0.00012333]
[1741965616839,0.011762,85013.0,85012.0,0.16664333]
[1741965617332,0.011762,85013.0,85012.0,0.16684333]
[1741965617982,0.011762,85013.0,85012.0,0.16676333]
[1741965618371,0.011762,85013.0,85012.0,0.00012333]
[1741965618581,0.011762,85013.0,85012.0,0.16676333]
[1741965618785,0.011762,85013.0,85012.0,0.00012333]
[1741965619644,0.011762,85013.0,85012.0,3.3e-07]
[1741965619645,0.11888315,85013.0,85012.0,3.3e-07]
[1741965619881,0.01823253,85013.0,85012.0,3.3e-07]
[1741965620278,0.01823253,85013.0,84990.0,0.10527693]
[1741965620279,0.247084,84991.0,84990.0,0.10527693]
[1741965620458,0.247084,84991.0,84990.0,0.10540044]
[1741965620816,0.247084,84991.0,84990.0,0.27160044]
[1741965621036,0.011765,84991.0,84990.0,0.10540044]
[1741965622039,0.247076,84994.0,84990.0,0.27172044]
[1741965622222,0.235313,84993.0,84990.0,0.27172044]
[1741965622423,0.25376464,84995.0,84990.0,0.27172044]
[1741965622624,0.011765,84991.0,84990.0,0.27172044]
[1741965624017,0.235313,84993.0,84990.0,0.27172044]
[1741965624227,0.011764,85005.0,84990.0,0.27172044]
[1741965624419,0.235292,85001.0,84990.0,0.27172044]
[1741965624652,0.235289,85002.0,84998.0,0.235298]
[1741965624856,0.01845212,85011.0,84995.0,0.011765]
[1741965625283,0.011763,85010.0,84993.0,0.011765]
[1741965625487,0.011763,85008.0,85004.0,0.235281]
[1741965625717,0.011763,85008.0,85001.0,0.235289]
[1741965625934,0.01845212,85011.0,84990.0,0.00012351]
[1741965625935,0.23531,84994.0,84990.0,0.00012351]
[1741965626135,0.247075,84994.0,84991.0,0.16572]
[1741965626340,0.247071,84996.0,84991.0,0.401038]
[1741965626635,0.011764,85004.0,84991.0,0.16572]
[1741965626833,0.235287,85003.0,84998.0,0.235297]
[1741965627055,0.25371712,85011.0,84999.0,0.1656]
[1741965627182,0.01845212,85011.0,84999.0,0.1656]
[1741965627426,0.011762,85014.0,85005.0,0.235278]
[1741965627427,0.235269,85009.0,85005.0,0.235278]
[1741965627665,0.235272,85008.0,85006.0,1.66544]
[1741965627866,0.011763,85007.0,85006.0,1.5]
[1741965628071,0.011763,85007.0,85006.0,0.16536]
[1741965629184,0.011765,84994.0,84990.0,0.00012351]
[1741965629419,0.235316,84992.0,84991.0,0.16508]
[1741965629543,0.235316,84992.0,84990.0,0.03656751]
[1741965629544,0.247081,84992.0,84990.0,0.03656751]
[1741965629749,0.011765,84991.0,84990.0,0.03656751]
[1741965629950,0.011765,84991.0,84990.0,0.20164751]
[1741965630153,0.247081,84995.0,84990.0,0.03656751]
[1741965630351,0.011764,84999.0,84991.0,0.16508]
[1741965630552,0.235295,85000.0,84991.0,0.16508]
[1741965630753,0.235297,84999.0,84992.0,0.16508]
[1741965630961,0.235297,84999.0,84994.0,0.235308]
[1741965631168,0.2537277,85007.0,84990.0,0.03656751]
[1741965631365,0.0184517,85007.0,84994.0,0.011765]
[1741965631632,0.0184517,85007.0,85002.0,0.235287]
[1741965631633,0.235277,85006.0,85002.0,0.235287]
[1741965631818,0.235281,85005.0,85000.0,0.235291]
[1741965632163,0.0184517,85007.0,85001.0,0.16488]
[1741965632344,0.0184517,85007.0,85005.0,0.235279]
[1741965632550,0.0184517,85007.0,85006.0,0.1648]
[1741965632912,0.01833575,85007.0,85006.0,0.1648]
[1741965633119,0.01833575,85007.0,85006.0,0.13133803]
[1741965633322,0.011762,85013.0,85006.0,0.00878909]
[1741965633752,0.235264,85011.0,85007.0,0.235234]
[1741965633956,0.247023,85012.0,85008.0,0.235271]
[1741965634161,0.247015,85015.0,85011.0,0.235263]
[1741965634454,0.235228,85024.0,85020.0,0.235238]
[1741965634590,0.235228,85024.0,85018.0,0.235242]
[1741965634591,0.011761,85024.0,85018.0,0.235242]
[1741965634816,0.011761,85024.0,85005.0,0.011764]
[1741965634817,0.247001,85020.0,85019.0,0.16472]
[1741965635038,0.23524,85020.0,85019.0,0.16468]
[1741965635241,0.235241,85019.0,85014.0,0.235254]
[1741965635443,0.23524,85020.0,85015.0,0.399812]
[1741965635661,0.2353866,85028.0,85023.0,0.235229]
[1741965635860,0.0001696,85028.0,85024.0,0.399707]
[1741965636073,0.0001696,85028.0,85025.0,0.1644]
[1741965636074,0.2353856,85028.0,85025.0,0.1644]
[1741965636269,0.0001696,85028.0,85024.0,0.235227]
[1741965636479,0.0001696,85028.0,85025.0,0.16432]
[1741965636698,0.0001696,85028.0,85025.0,1.66432]
[1741965636822,0.0001696,85028.0,85025.0,1.66428]
[1741965637023,0.0001696,85028.0,85025.0,1.899504]
[1741965637675,0.01176,85030.0,85026.0,0.235221]
[1741965637882,0.246962,85034.0,85027.0,0.164]
[1741965638236,0.2352,85034.0,85030.0,0.23521]
[1741965638444,0.235191,85037.0,85032.0,0.235205]
[1741965638628,0.011759,85040.0,85033.0,0.16372]
[1741965638822,0.246946,85039.0,85034.0,0.235199]
[1741965638979,0.235192,85037.0,85034.0,0.235199]
[1741965639175,0.246949,85038.0,85034.0,0.235199]
[1741965639381,0.235188,85039.0,85035.0,0.1638]
[1741965639591,0.011759,85039.0,85028.0,1.5]
[1741965639792,0.011758,85043.0,85029.0,0.16368]
[1741965640006,0.25361817,85044.0,85030.0,0.1636]
[1741965640007,0.03020417,85044.0,85030.0,0.1636]
[1741965640213,0.235183,85040.0,85036.0,0.235194]
[1741965640412,0.246939,85041.0,85031.0,0.16352]
[1741965640607,0.235183,85040.0,85035.0,0.235197]
[1741965640858,0.235204,85033.0,85031.0,0.02349473]
[1741965641297,0.2352,85034.0,85032.0,0.16332]
[1741965641496,0.235198,85035.0,85033.0,0.16336]
[1741965641794,0.246957,85035.0,85033.0,0.16336]
[1741965641992,0.246957,85035.0,85031.0,0.25869973]
[1741965641993,0.246957,85035.0,85034.0,0.16328]
[1741965642453,0.235207,85032.0,85028.0,0.00896167]
[1741965642653,0.235207,85032.0,85029.0,0.16312]
[1741965643080,0.235207,85032.0,85030.0,0.16292]
[1741965643280,0.235207,85032.0,85021.0,0.02305658]
[1741965643281,0.2352,85034.0,85027.0,0.235216]
[1741965643496,0.246956,85035.0,85028.0,0.16284]
[1741965643762,0.235175,85043.0,85039.0,0.235145]
[1741965644011,0.23518,85041.0,85040.0,0.16268]
[1741965644214,0.23636158,85042.0,85040.0,0.16268]
[1741965644390,0.23636158,85042.0,85038.0,0.235187]
[1741965644560,0.00118258,85042.0,85039.0,0.16264]
[1741965644765,0.00118258,85042.0,85041.0,0.23518]
[1741965644995,0.00118258,85042.0,85041.0,0.409859]
[1741965645196,0.00118258,85042.0,85041.0,0.3981]
[1741965645454,0.00118258,85042.0,85041.0,0.409859]
[1741965646126,0.00122258,85042.0,85041.0,0.39822351]
[1741965646352,0.00122258,85042.0,85041.0,0.33889278]
[1741965646566,0.00122258,85042.0,85041.0,0.47903565]
[1741965646773,0.00122258,85042.0,85041.0,1.97891384]
[1741965647739,0.00112379,85042.0,85041.0,1.97891384]
[1741965648142,0.01552207,85050.0,85049.0,0.246915]
[1741965648316,0.01552207,85050.0,85049.0,1.11305344]
[1741965648916,0.01552207,85050.0,85049.0,2.61305344]
[1741965649468,0.01552207,85050.0,85049.0,2.77717344]
[1741965649904,0.01552207,85050.0,85049.0,2.60141303]
[1741965650110,0.01552207,85050.0,85049.0,2.76561303]
[1741965650319,0.01552207,85050.0,85049.0,2.24668]
[1741965650525,0.02727907,85050.0,85049.0,0.91124]
[1741965650902,0.02727907,85050.0,85049.0,0.74668]
[1741965651103,0.02727907,85050.0,85041.0,1.50893235]
[1741965651104,0.011758,85042.0,85041.0,0.00012351]
[1741965651266,0.24840503,85042.0,85041.0,0.00012351]
[1741965651477,0.246935,85042.0,85041.0,0.00012351]
[1741965652119,0.246935,85042.0,85041.0,0.10528254]
[1741965652608,0.235175,85043.0,85041.0,0.10528254]
[1741965652609,0.011758,85043.0,85041.0,0.10528254]
[1741965652802,0.011758,85042.0,85041.0,0.10528254]
[1741965653348,0.011758,85043.0,85041.0,0.10528254]
[1741965653556,0.03396536,85050.0,85049.0,0.235158]
[1741965653771,0.01552207,85050.0,85049.0,0.246915]
[1741965653973,0.01552207,85050.0,85049.0,0.235158]
[1741965655000,0.01552207,85050.0,85042.0,0.02370652]
[1741965655203,0.246931,85044.0,85043.0,0.16528]
[1741965655409,0.235177,85042.0,85035.0,0.02313636]
[1741965655618,0.246935,85042.0,85041.0,0.16536561]
[1741965655819,0.246935,85042.0,85041.0,5.61e-06]
[1741965657271,0.246935,85042.0,85041.0,0.00034461]
[1741965659080,0.246975,85042.0,85041.0,0.00034461]
[1741965659279,0.247006,85018.0,85017.0,0.00871649]
[1741965659514,0.011762,85018.0,85017.0,0.00871649]
[1741965659891,0.01323258,85018.0,85017.0,0.00871649]
[1741965660128,0.01323258,85018.0,85015.0,0.00012356]
[1741965660129,0.011762,85016.0,85015.0,0.00012356]
[1741965660342,0.26545916,85018.0,85015.0,0.00012356]
[1741965660539,0.26545916,85018.0,85016.0,0.16568]
[1741965660540,0.011762,85017.0,85016.0,0.16568]
[1741965660697,0.25369516,85018.0,85016.0,0.16568]
[1741965661270,0.011762,85017.0,85016.0,0.16568]
[1741965661852,0.24704,85006.0,85005.0,0.10040049]
[1741965662041,0.24704,85006.0,85005.0,0.2665241]
[1741965662451,0.011761,85021.0,85008.0,0.011763]
[1741965662659,4e-05,85017.0,85010.0,0.247026]
[1741965662863,4e-05,85017.0,85010.0,0.235263]
[1741965663101,4e-05,85017.0,85005.0,0.2665241]
[1741965663102,0.235276,85007.0,85005.0,0.16612361]
[1741965663305,4e-05,85017.0,85005.0,0.16612361]
[1741965663306,0.235261,85012.0,85005.0,0.16612361]
[1741965663504,0.011762,85013.0,85005.0,0.16612361]
[1741965663505,0.011763,85011.0,85005.0,0.16612361]
[1741965663725,0.247038,85007.0,85005.0,0.16612361]
[1741965663901,0.011763,85009.0,85006.0,0.166]
[1741965664109,0.235272,85008.0,85006.0,0.166]
[1741965664440,0.03021127,85022.0,85015.0,0.235251]
[1741965664702,0.03021127,85022.0,85006.0,0.177763]
[1741965664703,0.01845027,85022.0,85006.0,0.166]
[1741965664909,0.235245,85018.0,85006.0,0.166]
[1741965665040,0.011762,85014.0,85006.0,0.166]
[1741965665248,0.235272,85008.0,85006.0,0.166]
[1741965665470,0.235272,85009.0,85006.0,0.166]
[1741965665670,0.235273,85008.0,85006.0,0.166]
[1741965666187,0.011763,85007.0,85006.0,0.166]
[1741965666358,0.011763,85007.0,85005.0,0.00012361]
[1741965666359,0.24704,85006.0,85005.0,0.00012361]
[1741965668105,0.247049,85003.0,85002.0,0.16253294]
[1741965668529,0.24704,85006.0,85002.0,0.16265658]
[1741965668678,0.03025381,85007.0,85002.0,0.16265658]
[1741965669032,0.01849081,85007.0,85005.0,0.235277]
[1741965669406,0.01849081,85007.0,85002.0,0.16265658]
[1741965669610,0.235283,85004.0,85002.0,0.16265658]
[1741965669821,0.011764,85003.0,85002.0,0.00012364]
[1741965670711,0.01323466,85003.0,85002.0,0.00012364]
[1741965671074,0.011764,85003.0,85002.0,0.00012364]
[1741965671577,0.01323492,85003.0,85002.0,0.00046284]
[1741965672020,0.011765,84994.0,84990.0,4e-08]
[1741965672196,0.293184,84991.0,84990.0,7.4e-07]
[1741965672816,0.72704243,84991.0,84990.0,7.4e-07]
[1741965673019,0.247142,84971.0,84970.0,2e-07]
[1741965673220,0.247142,84971.0,84970.0,0.00012391]
[1741965673221,0.657542,84971.0,84970.0,0.00012391]
[1741965673804,0.24716,84966.0,84959.0,7.1e-07]
[1741965674002,0.247174,84960.0,84959.0,0.00041672]
[1741965674247,0.247174,84960.0,84955.0,6.7e-07]
[1741965674248,0.247185,84956.0,84955.0,6.7e-07]
[1741965674450,0.28348928,84956.0,84955.0,6.7e-07]
[1741965674652,0.31760345,84956.0,84955.0,6.7e-07]
[1741965674863,0.32260345,84956.0,84955.0,6.7e-07]
[1741965675168,1.0475443,84956.0,84955.0,6.7e-07]
[1741965675401,0.247249,84934.0,84928.0,0.000339]
[1741965675612,0.657649,84934.0,84933.0,1e-06]
[1741965675816,0.657649,84934.0,84930.0,1e-06]
[1741965675817,0.247259,84931.0,84930.0,1e-06]
[1741965676016,0.247285,84922.0,84921.0,1e-06]
[1741965676240,0.662685,84922.0,84921.0,1e-06]
[1741965676450,0.7734094,84922.0,84921.0,1e-06]
[1741965676652,0.84424396,84922.0,84921.0,1e-06]
[1741965676854,0.74098285,84922.0,84921.0,1e-06]
[1741965676981,0.247305,84915.0,84914.0,0.0003374]
[1741965677183,0.23554,84911.0,84910.0,4e-07]
[1741965677387,0.23554,84911.0,84867.0,0.166]
[1741965677388,0.0495,84900.0,84867.0,0.166]
[1741965677612,0.01178,84889.0,84872.0,0.011782]
[1741965677814,0.235599,84890.0,84883.0,0.235616]
[1741965678026,0.011779,84895.0,84875.0,0.011782]
[1741965678227,0.011779,84891.0,84884.0,0.235612]
[1741965678434,0.011781,84879.0,84869.0,1.91362399]
[1741965678720,0.011781,84879.0,84856.0,0.011784]
[1741965678721,0.011782,84870.0,84866.0,0.02315474]
[1741965678922,0.00041585,84870.0,84867.0,0.23566]
[1741965679121,0.011782,84869.0,84866.0,0.02315474]
[1741965679322,0.00041585,84870.0,84860.0,0.16592]
[1741965679518,0.00041585,84870.0,84865.0,0.235666]
[1741965679719,0.00032383,84870.0,84869.0,0.235657]
[1741965679918,0.00032383,84870.0,84869.0,0.253439]
[1741965680147,0.00032383,84870.0,84869.0,0.247439]
[1741965680353,0.00132383,84870.0,84869.0,0.247439]
[1741965680553,0.00132383,84870.0,84869.0,0.413399]
[1741965680751,0.00132383,84870.0,84869.0,0.401617]
[1741965680930,0.00132383,84870.0,84869.0,0.16596]
[1741965681327,0.01310583,84870.0,84867.0,0.005]
[1741965681531,0.011783,84868.0,84867.0,0.17088]
[1741965681760,0.011783,84868.0,84867.0,0.16588]
[1741965681966,0.01166124,84868.0,84867.0,0.16588]
[1741965682636,0.00032383,84870.0,84867.0,0.16588]
[1741965682909,0.00032383,84870.0,84869.0,0.234657]
[1741965683083,0.00032383,84870.0,84869.0,0.246439]
[1741965683761,0.00032383,84870.0,84869.0,0.36601403]
[1741965683975,8.3e-07,84870.0,84869.0,0.87691403]
[1741965684182,8.3e-07,84870.0,84869.0,0.89145488]
[1741965684382,0.4104,84910.0,84909.0,0.235546]
[1741965684586,0.0003398,84922.0,84909.0,0.177177]
[1741965684797,0.01847385,84919.0,84909.0,0.1654]
[1741965685176,0.01847385,84919.0,84910.0,0.16528]
[1741965685177,0.011777,84911.0,84910.0,0.16528]
[1741965685938,0.24732,84910.0,84909.0,0.00512375]
[1741965686148,0.24732,84910.0,84909.0,0.01012375]
[1741965686341,0.24732,84910.0,84909.0,0.00512375]
[1741965686785,0.26579408,84910.0,84909.0,0.00512375]
[1741965686949,0.26579408,84910.0,84909.0,0.00012375]
[1741965688331,0.26579408,84910.0,84909.0,0.01212375]
[1741965688785,0.26579408,84910.0,84909.0,0.00612375]
[1741965688986,0.26579408,84910.0,84909.0,0.00012375]
[1741965689317,0.01847408,84910.0,84909.0,0.25944675]
[1741965689528,0.01851408,84910.0,84909.0,0.42424675]
[1741965689704,4e-05,84910.0,84909.0,0.41246975]
[1741965690087,4e-05,84910.0,84909.0,0.40646975]
[1741965690319,4e-05,84910.0,84909.0,0.40046975]
[1741965690519,4e-05,84910.0,84909.0,0.41224675]
[1741965690970,4e-05,84910.0,84909.0,0.53182178]
[1741965691104,0.235434,84950.0,84921.0,0.247288]
[1741965691310,0.235436,84949.0,84921.0,0.36686303]
[1741965691588,0.01846809,84941.0,84921.0,0.36686303]
[1741965692253,0.011773,84939.0,84921.0,0.36686303]
[1741965692458,0.01846809,84941.0,84921.0,0.37286303]
[1741965692790,0.247215,84947.0,84921.0,0.37286303]
[1741965692979,0.011771,84954.0,84940.0,0.011773]
[1741965693184,0.01846586,84951.0,84941.0,0.16456]
[1741965693359,0.26566786,84951.0,84941.0,0.16456]
[1741965693559,0.011771,84949.0,84944.0,0.235447]
[1741965693760,0.011771,84950.0,84945.0,0.235445]
[1741965693961,0.235436,84949.0,84944.0,0.235446]
[1741965694164,0.011771,84948.0,84942.0,0.235454]
[1741965694366,0.011771,84948.0,84945.0,0.16428]
[1741965694367,0.247214,84947.0,84945.0,0.16428]
[1741965694572,0.247214,84947.0,84944.0,7.5e-07]
[1741965694573,0.247218,84945.0,84944.0,7.5e-07]
[1741965696199,0.247218,84945.0,84944.0,0.00200075]
[1741965696745,0.247218,84945.0,84944.0,7.5e-07]
[1741965697588,0.247218,84945.0,84921.0,0.0001698]
[1741965697859,0.247285,84922.0,84921.0,0.00029357]
[1741965698002,0.657685,84922.0,84921.0,0.00029357]
[1741965698379,0.67615737,84922.0,84921.0,0.00029357]
[1741965698605,0.67615737,84922.0,84921.0,5.7e-07]
[1741965699025,0.76215737,84922.0,84921.0,5.7e-07]
[1741965699231,1.1817324,84922.0,84921.0,5.7e-07]
[1741965699441,0.247352,84899.0,84881.0,0.911]
[1741965699657,0.247352,84899.0,84898.0,0.02522927]
[1741965700124,0.011778,84901.0,84898.0,0.02522927]
[1741965700321,0.011778,84899.0,84898.0,0.02522927]
[1741965700721,0.247351,84900.0,84898.0,0.02522927]
[1741965700912,0.01847608,84901.0,84898.0,0.26080327]
[1741965701114,0.247349,84900.0,84898.0,0.02522927]
[1741965701322,0.01847608,84901.0,84898.0,0.02522927]
[1741965701574,0.01847608,84901.0,84899.0,0.235573]
[1741965701693,0.01847608,84901.0,84898.0,0.26080227]
[1741965701899,4e-05,84899.0,84898.0,0.02922927]
[1741965702315,0.011818,84899.0,84898.0,0.02922927]
[1741965702541,0.011818,84899.0,84898.0,0.02522927]
[1741965702738,0.011818,84899.0,84898.0,0.03122927]
[1741965703167,0.011818,84899.0,84898.0,0.03722927]
[1741965703374,0.011818,84899.0,84898.0,0.03122927]
[1741965703750,0.235614,84899.0,84898.0,0.03122927]
[1741965703980,0.247392,84899.0,84898.0,0.03722927]
[1741965704174,0.247392,84899.0,84898.0,0.03122927]
[1741965704451,0.247392,84899.0,84898.0,0.03522927]
[1741965705173,0.247392,84899.0,84898.0,0.02922927]
[1741965705397,4e-05,84899.0,84898.0,0.02922927]
[1741965705595,4e-05,84899.0,84898.0,0.03522927]
[1741965705799,0.247392,84899.0,84898.0,0.03522927]
[1741965706224,0.247392,84899.0,84898.0,0.02922927]
[1741965706550,0.247392,84899.0,84898.0,0.03122927]
[1741965706686,0.247392,84899.0,84898.0,0.03622927]
[1741965706885,0.247392,84899.0,84898.0,0.03122927]
[1741965707085,0.247432,84899.0,84898.0,0.02522927]
[1741965707288,0.247432,84899.0,84898.0,0.03022927]
[1741965707721,0.247432,84899.0,84898.0,0.02522927]
[1741965708056,0.247432,84899.0,84898.0,0.02539907]
[1741965709019,0.247432,84899.0,84898.0,0.03239907]
[1741965709430,0.247432,84899.0,84898.0,0.02639907]
[1741965709631,0.235571,84900.0,84898.0,0.02639907]
[1741965709836,0.247352,84899.0,84898.0,0.02739907]
[1741965710030,0.247352,84899.0,84898.0,0.03039907]
[1741965710265,0.247352,84899.0,84898.0,0.02839907]
[1741965710437,0.26582786,84899.0,84898.0,0.02839907]
[1741965710639,0.26582786,84899.0,84898.0,0.03239907]
[1741965711159,0.67622786,84899.0,84898.0,0.03239907]
[1741965712095,0.66444986,84899.0,84898.0,0.03239907]
[1741965712296,0.01847586,84899.0,84898.0,0.26797507]
[1741965712703,0.01847586,84899.0,84898.0,0.03239907]
[1741965713031,0.26582786,84899.0,84898.0,0.03239907]
[1741965714226,0.26582786,84899.0,84898.0,0.03239907]
[1741965714459,0.247352,84899.0,84898.0,0.03239907]
[1741965715803,0.247352,84899.0,84865.0,0.25933553]
[1741965715804,0.011782,84871.0,84865.0,0.25933553]
[1741965716161,0.011782,84871.0,84865.0,0.00041585]
[1741965716162,0.23566,84868.0,84865.0,0.00041585]
[1741965716393,0.011782,84870.0,84865.0,0.00041585]
[1741965716598,0.235658,84869.0,84866.0,1.5]
[1741965716803,0.235629,84879.0,84868.0,0.235659]
[1741965716950,0.235626,84880.0,84867.0,0.011783]
[1741965717146,0.011781,84877.0,84870.0,0.235652]
[1741965717351,0.235624,84881.0,84867.0,0.011783]
[1741965717514,0.011781,84877.0,84866.0,1.5]
[1741965717720,0.247418,84877.0,84866.0,1.5]
[1741965717945,0.23564,84875.0,84866.0,1.5]
[1741965718151,0.011781,84877.0,84871.0,0.235649]
[1741965718152,0.235635,84877.0,84871.0,0.235649]
[1741965718376,0.23564,84875.0,84871.0,0.235649]
[1741965718732,0.247416,84877.0,84871.0,0.235649]
[1741965719008,0.011782,84874.0,84868.0,0.16032]
[1741965719210,0.235646,84873.0,84868.0,0.395979]
[1741965719429,0.247439,84869.0,84868.0,0.16032]
[1741965719569,0.247439,84869.0,84866.0,1.5]
[1741965719570,0.247445,84867.0,84866.0,1.5]
[1741965719753,0.197445,84867.0,84866.0,1.5]
[1741965719959,0.209228,84867.0,84866.0,1.5001698]
[1741965720576,0.209228,84867.0,84866.0,0.0001698]
[1741965720910,0.001,84867.0,84866.0,1.5051698]
[1741965721115,0.247445,84867.0,84866.0,1.5001698]
[1741965721316,0.235649,84872.0,84866.0,1.5001698]
[1741965721514,0.011782,84871.0,84866.0,1.5001698]
[1741965721720,0.235662,84867.0,84866.0,1.5001698]
[1741965721954,0.247445,84867.0,84866.0,1.5001698]
[1741965722522,0.247445,84867.0,84866.0,0.0051698]
[1741965722948,0.247445,84867.0,84866.0,0.0061698]
[1741965723165,0.247445,84867.0,84866.0,0.0261698]
[1741965723370,0.248445,84867.0,84866.0,0.0251698]
[1741965723921,0.248445,84867.0,84866.0,0.0311698]
[1741965724821,0.236662,84867.0,84866.0,0.0311698]
[1741965724965,0.248445,84867.0,84866.0,0.0311698]
[1741965725972,0.001,84867.0,84866.0,0.0311698]
[1741965726164,0.001,84867.0,84866.0,0.2668348]
[1741965726525,0.23558,84897.0,84887.0,0.01178]
[1741965726807,0.01178,84887.0,84883.0,0.1598]
[1741965726968,0.01178,84887.0,84867.0,0.09404085]
[1741965726969,0.011781,84876.0,84873.0,0.1598]
[1741965727307,0.247425,84874.0,84873.0,0.1598]
[1741965727508,0.011781,84879.0,84873.0,0.1598]
[1741965727509,0.247406,84881.0,84873.0,0.1588]
[1741965727711,0.011779,84893.0,84883.0,0.01178]
[1741965727915,0.011779,84895.0,84885.0,0.23561]
[1741965728132,0.011777,84911.0,84897.0,0.235579]
[1741965728281,0.0003396,84921.0,84893.0,0.011779]
[1741965728282,0.011778,84901.0,84893.0,0.23559]
[1741965728507,0.235563,84903.0,84893.0,0.011779]
[1741965728682,0.011777,84907.0,84897.0,0.235576]
[1741965728884,0.011778,84904.0,84896.0,0.235576]
[1741965729085,0.011778,84901.0,84891.0,0.395634]
[1741965729311,0.235585,84895.0,84891.0,0.16004]
[1741965729510,0.247372,84892.0,84891.0,0.16016384]
[1741965729685,0.247364,84895.0,84891.0,0.39575784]
[1741965729893,0.011778,84897.0,84891.0,0.16016384]
[1741965729894,0.247357,84897.0,84891.0,0.16016384]
[1741965730103,0.011778,84897.0,84891.0,0.16016384]
[1741965730302,0.011778,84904.0,84891.0,0.16016384]
[1741965730303,0.23556,84904.0,84898.0,0.235576]